Cogmind - Beta 11 X11 @@@ ROGUE MODE // 2022.03.15 @ 02:08:46 Player: Shin Result: Destroyed by G-34 Mercenary with Small Laser Performance ------------- Evolutions (0) 0 Regions Visited (1) 200 Robots Destroyed (10) 50 Value Destroyed (196) 196 Prototype IDs (2) 40 Alien Tech Used (0) 0 Bonus (0) 0 TOTAL SCORE: 486 Bonus ------- None Cogmind --------- Core Integrity 0/250 Matter 202/300 Energy 230/250 System Corruption 4% Temperature Cool (16) Movement Walking (120) Location -10/Materials Parts ------- > --- POWER (1) -------- Ion Engine > --- PROPULSION (2) --- Aluminum Leg Aluminum Leg > --- UTILITY (2) ------ Medium Storage Unit > --- WEAPON (2) ------- Assault Rifle Mining Laser > --- INVENTORY (10) --- Light Treads Light Treads Aluminum Leg Wheel Heat Sink Welding Torch Peak State ------------ > --- POWER ------------ Light Ion Engine > --- PROPULSION ------- Wheel Wheel > --- UTILITY ---------- Small Storage Unit Seismic Detector > --- WEAPON ----------- EM Pulse Gun Small Laser > --- INVENTORY -------- Light Ion Engine Light Treads Light Treads Aluminum Leg Aluminum Leg Wheel Small Laser Mining Laser [Rating: 7] Favorites ----------- Power Light Ion Engine Engine Light Ion Engine Propulsion Aluminum Leg Leg Aluminum Leg Wheel Wheel Utility Small Storage Unit Device Seismic Detector Storage Small Storage Unit Weapon Small Laser Energy Gun Small Laser Ballistic Gun Assault Rifle Special Weapon Welding Torch Build | -11 -10 ------- Run | Scr Mat Slots Evolved . | . . Power . | . . Propulsion . | . . Utility . | . . Weapon . | . . Parts Attached 20 | 3 17 Power 2 | . 2 Engine 2 | . 2 Core . | . . Reactor . | . . Propulsion 5 | 2 3 Treads . | . . Leg 3 | . 3 Wheel 2 | 2 . Hover . | . . Flight . | . . Utility 2 | 1 1 Device 1 | 1 . Storage 1 | . 1 Processor . | . . Hackware . | . . Protection . | . . Artifact . | . . Weapon 11 | . 11 Energy Gun 3 | . 3 Energy Cannon . | . . Ballistic Gun 1 | . 1 Ballistic Cannon . | . . Launcher . | . . Special Weapon 7 | . 7 Impact Weapon . | . . Slashing Weapon . | . . Piercing Weapon . | . . Special Melee Weapon . | . . Unidentified Prototypes . | . . Parts Lost 11 | . 11 Power 2 | . 2 Propulsion 2 | . 2 Utility 1 | . 1 Weapon 6 | . 6 Highest Loss Streak 11 | . 11 To Critical Strikes . | . . Average Slot Usage (%) 62 | . 62 Engine 7 | . 7 Leg 8 | . 8 Wheel 7 | . 7 Device 4 | . 4 Storage 14 | . 14 Energy Gun 7 | . 7 Ballistic Gun 2 | . 2 Special Weapon 9 | . 9 Naked Turns . | . . Heaviest Build 18 | 12 18 Greatest Support 20 | 20 20 Greatest Overweight (x) 3 | . 3 Average Overweight (x) . | . . Largest Inventory Capacity 10 | 8 10 Average Capacity 8 | 8 8 Most Carried 8 | 8 8 Average Carried 6 | 6 6 Final Capacity 10 | 8 10 Final Carried 8 | 8 6 Class Distribution -------------------- 100% | Mutant Dominant Class ---------------- Mutant | -10/Materials Resources | -11 -10 ----------- Run | Scr Mat Matter Collected 277 | 230 47 Remotely . | . . Salvage Created 311 | 116 195 Parts 15 | 8 7 Haulers Intercepted . | . . Recyclers Shooed 1 | 1 . Parts Field Recycled . | . . Retrieved Matter . | . . Parts Self-Destructed . | . . Prevented . | . . Kills | -11 -10 ------- Run | Scr Mat Combat Hostiles Destroyed 7 | . 7 Guns 3 | . 3 Cannons 1 | . 1 AOE 3 | . 3 Classes Destroyed 4 | 2 2 Tunneler 2 | 2 . Recycler 1 | 1 . Swarmer 3 | . 3 Grunt 4 | . 4 Best Kill Streak 5 | 3 5 Combat Bots Only 5 | . 5 Max Kills in Single Turn 3 | 1 3 Gunslinging . | . . Exploded 3 | . 3 Melee . | . . Uniques/NPCs Destroyed . | . . Combat | -11 -10 -------- Run | Scr Mat Damage Taken 854 | . 854 Core 251 | . 251 Absorbed by Shields . | . . Core Remaining (%) 100 | 100 . Volleys Fired 37 | 5 32 Largest 2 | 2 2 Hottest 140 | 80 140 Shots Fired 55 | 10 45 Gun 46 | 10 36 Cannon . | . . Launcher . | . . Special 9 | . 9 Kinetic 1 | . 1 Thermal 40 | 5 35 Explosive . | . . Electromagnetic 14 | 5 9 Robot Hit Streak 11 | 4 11 Robot Miss Streak 3 | 1 3 Penetration Max . | . . Secondary Targets 1 | . 1 Max Gunslinging Chain 1 | . 1 Shots Hit Robots 36 | 6 30 Core Hits 14 | 4 10 Critical Kills . | . . Critical Parts Destroyed . | . . Critical Strikes . | . . Melee Attacks . | . . Impact . | . . Slashing . | . . Piercing . | . . Sneak Attacks . | . . Combat Hostiles . | . . Follow-up Attacks . | . . Damage Inflicted 725 | 68 657 Guns 365 | 68 297 Cannons . | . . Explosions 324 | . 324 Melee . | . . Ramming . | . . Kinetic . | . . Thermal 295 | 31 264 Explosive 324 | . 324 Electromagnetic 106 | 37 69 Impact . | . . Slashing . | . . Piercing . | . . Highest Corruption 4 | . 4 Average Corruption 4 | . 4 Corruption Purged . | . . Corruption Blocked . | . . Effects 8 | . 8 Message Errors 3 | . 3 Matter Fused 1 | . 1 Parts Rejected 1 | . 1 Data Loss (minor) 1 | . 1 Data Loss (major) 1 | . 1 Misfires 1 | . 1 Overload Shots . | . . Overflow Damage 72 | . 72 Projectiles . | . . Explosions 72 | . 72 Melee . | . . Knockbacks . | . . Impact . | . . Kinetic . | . . Secondary . | . . Self-Inflicted Damage 47 | . 47 Shots 1 | . 1 Rammed . | . . Targets Rammed . | . . Kicked . | . . Crushed . | . . Highest Temperature 166 | 36 166 Average Temperature 80 | 19 93 Received Heat Transfer 282 | . 282 Siege Activations . | . . Robots Corrupted . | . . Combat Hostiles . | . . Parts Fried 1 | . 1 Impact Corruptions . | . . Robots Melted . | . . Combat Hostiles . | . . Parts Melted 2 | . 2 Heat Transferred 775 | 75 700 Parts Sabotaged . | . . Parts Stolen . | . . Parts Stripped . | . . Power Chain Reactions . | . . Missiles Intercepted . | . . Alert | -11 -10 ------- Run | Scr Mat Peak Influence 166 | 15 166 Initial 9 | . 9 Average 101 | 6 117 Maximum Alert Level . | . . Low Security (%) 100 | 100 100 Level 1 . | . . Level 2 . | . . Level 3 . | . . Level 4 . | . . Level 5 . | . . High Security . | . . Max Security . | . . Squads Dispatched 5 | . 5 Investigation 2 | . 2 Extermination . | . . Reinforcement 3 | . 3 Assault . | . . Garrison . | . . Intercept . | . . Searches Triggered . | . . Construction Impeded . | . . Haulers Reinforced . | . . Active Scanning Responses . | . . Cargo Convoy Interrupts . | . . Stealth | -11 -10 --------- Run | Scr Mat Distress Signals 1 | . 1 Communications Jammed . | . . Distress Signals . | . . Times Spotted 24 | . 24 Peak Tracking Total 7 | . 7 Tactical Retreats . | . . Traps | -11 -10 ------- Run | Scr Mat Traps Triggered 2 | . 2 Indirectly . | . . Trap Hack Attempts . | . . Triggered . | . . Disarmed . | . . Reprogrammed . | . . Reused . | . . Traps Extracted . | . . Installed . | . . Triggered . | . . Machines | -11 -10 ---------- Run | Scr Mat Machines Disabled 1 | . 1 Max in Single Turn 1 | . 1 Machines Sabotaged . | . . Garrisons Compromised . | . . Overloaded Fab Kills . | . . Hacking | -11 -10 --------- Run | Scr Mat Machines Accessed 4 | . 4 Terminals 3 | . 3 Fabricators . | . . Repair Stations . | . . Recycling Units 1 | . 1 Scanalyzers . | . . Garrison Access . | . . Total Hacks 9 | . 9 Successful 3 | . 3 Failed 6 | . 6 Catastrophic 1 | . 1 Database Lockouts . | . . Manual 3 | . 3 Terminals 8 | . 8 Fabricators . | . . Repair Stations . | . . Recycling Units 1 | . 1 Scanalyzers . | . . Garrison Access . | . . Terminal Hacks 3 | . 3 Prototype ID Bank 1 | . 1 Unreport Threat 1 | . 1 Locate Traps 1 | . 1 Fabricator Hacks . | . . Repair Station Hacks . | . . Recycling Unit Hacks . | . . Scanalyzer . | . . Garrison Access Hacks . | . . Unauthorized Hacks . | . . Terminals . | . . Fabricators . | . . Repair Stations . | . . Recycling Units . | . . Scanalyzers . | . . Garrison Access . | . . Data Cores Recovered . | . . Used . | . . Hacking Detections 3 | . 3 Full Trace Events 1 | . 1 Feedback Events . | . . Feedback Blocked . | . . Robot Schematics Acquired . | . . Robots Built . | . . Authchips . | . . Time . | . . Total Robot Build Rating . | . . Part Schematics Acquired . | . . Parts Built . | . . Authchips . | . . Time . | . . Total Part Build Rating . | . . Parts Repaired . | . . Time . | . . Parts Recycled . | . . Recycled Matter . | . . Retrieved Matter . | . . Retrieved Components . | . . Parts Scanalyzed . | . . Part Schematics Acquired . | . . Parts Damaged . | . . Bothacking | -11 -10 ------------ Run | Scr Mat Used RIF Installer . | . . Robots Hacked . | . . Non-combat . | . . Combat . | . . Robot Hacks Applied . | . . Relay Couplers Released . | . . Fabnet Peak Effective % . | . . Robots Rewired . | . . Allies Hacked . | . . Hacks Repelled . | . . Allies | -11 -10 -------- Run | Scr Mat Total Allies . | . . Largest Group . | . . Highest-Rated Group . | . . Highest-Rated Ally . | . . Total Orders . | . . Ally Attacks . | . . Total Damage . | . . Kills . | . . Allies Corrupted . | . . Allies Melted . | . . Intel | -11 -10 ------- Run | Scr Mat Robot Analysis Total . | . . Derelict Logs Recovered . | . . Drone Launches . | . . Drone Recoveries . | . . Exploration | -11 -10 ------------- Run | Scr Mat Turns Passed 436 | 64 372 Spaces Moved 267 | 41 226 Core 70 | . 70 Treads . | . . Legs 102 | 26 76 Wheels 95 | 15 80 Hover . | . . Flight . | . . Fastest Speed 80 | 80 80 Average Speed 113 | 105 114 Slowest Speed 200 | 120 200 Overloaded Moves . | . . Propulsion Burnouts . | . . Robots Hopped . | . . Cave-ins Triggered 1 | . 1 Exploration Rate (%) 20 | 3 37 Regions Visited 1 Branch Regions . Pre-discovered Areas . | . . Known Exits Taken . | . . Unknown Exits Taken 1 | 1 . Scrap Searched . | . . Spaces Dug 2 | . 2 Terrain Destroyed 26 | . 26 Melee . | . . Projectile 2 | . 2 AOE 24 | . 24 Terrain Rammed . | . . Walls Destroyed . | . . Machines Disabled . | . . Actions | -11 -10 --------- Run | Scr Mat Total 338 | 50 288 Wait . | . . Move 266 | 40 226 Hop . | . . Pick Up 14 | 2 12 Fast Attach 1 | 1 . Attach 14 | . 14 Detach . | . . Swap 5 | 2 3 Drop 1 | . 1 Fire 37 | 5 32 Melee . | . . Ram . | . . Kick . | . . Crush . | . . Escape Stasis . | . . Rewire . | . . Trap . | . . Miscellaneous . | . . Route ------- -11/Scrapyard -10/Materials History --------- Turn | Location | Event 1 | -11/Scrapyard | Discovered new exit (range 3) 65 | -11/Scrapyard | Entered Materials 184 | -10/Materials | Core integrity fell below 50% 192 | -10/Materials | Crushed by falling debris 222 | -10/Materials | Core integrity fell below 20% 266 | -10/Materials | Lost 11 parts (2p2n1u6w) 305 | -10/Materials | Build established: Mutant 437 | -10/Materials | Destroyed by G-34 Mercenary with Small Laser Last Messages --------------- 00359_ K-01 Serf cleans the Electrolysis Chamber. 00368_ K-01 Serf collects debris. 00372_ Acquired Assault Rifle. 00377_ K-01 Serf cleans the Processing Tank. 00379_ Acquired Heat Sink. 00381_ Connecting with Terminal... >>Prototypes Downloading prototype IDs... Hvy. Ion Engine Imp. Assault Rifle >>Traps(Locate) Found 5 traps in 1 array: 5x Blade Trap Map updated. 00381_ ALERT: Suspicious activity at Terminal M005. Dispatching Investigation squad. 00382_ K-01 Serf cleans the Processing Tank. 00386_ T0W:87EYOTTXCU&XDUMZX04BC6D 00424_ System corrupted: FCS attempts to trigger Assault Rifle. 00424_ System corrupted: Assault Rifle misfires. Map ----- +----------------------------------------------------+ | ??????????????? | | ^ "T" #?????????????????? | | ^ #########+##############?????????????????? | | ^ #??????? ??????????????????????????????? | | """ #???????""" ?????????????????????????????? | | ^""" #?????? """ "????????????????????????????? | | """ #?????? """ ""???????????????????????????? | | #?????? ? ???????????????????????????? | | ###########??????????????????????????????? | | """ # #??????????????????????????????? | | """ # ???????????????????????????????? | | """ # ???????????????????????????????? | | # """ ""?????????????????????????????????? | | + """ ""?????????????????????????????????? | | # """ ""?????????????????????????????????? | | #### # ???????????????????????????????? | | #??# # ???????????????????????????????? | | ####+##########???????????????????????????????? | | ##! """ #??????????????????????????????????? | | ## "T" #??????????????????????????????????? | | ## #??????????????????????????????????? | | ## #??????????????????????????????????? | | ######+######+###################?????????????? | | ??????? | | ##### #?????????????? | | g @ #?????????????????????? | | ##/######## ############;###?????????????????????? | | #??# #??????????##????????????????????????? | | #??# #????????????????????????????????????? | | #??# #????????????????????????????????????? | | #??# #????????????????????????????????????? | | #??# #????????????????????????????????????? | | #?? #????????????????????????????????????? | | #?? ????????????????????????????????????? | | #?? #????????????????????????????????????? | | #?? ??#??????????????????????????????????? | | +#####+### ?????????????????????????????????? | | ?????????????????????????????????? | | ?????????????????????????????????? | | ########/##????????????????????????????????????? | | #??????? ??????????????????????????????????????? | | #??????? ??????????????????????????????????????? | | #??????????????????????????????????????????????? | | #??????????????????????????????????????????????? | | +??????????????????????????????????????????????? | | #??????????????????????????????????????????????? | | #??????????????????????????????????????????????? | | ###??????????????????????????????????????????????? | | ?????????????????????????????????????????????????? | | ?????????????????????????????????????????????????? | +----------------------------------------------------+ Best States ------------- Heat Dissipation 25 Energy Generation 10 Energy Capacity 250 Matter Stores 300 Matter Capacity 300 Sight Range 16 Terrain Scan Density 10 Evasion (%) 55 Item Schematics ----------------- None Robot Schematics ------------------ None Fabricated ------------ Nothing Alien Tech Used ----------------- None Achievements -------------- None Challenges ------------ None Game ------ Seed OmegaPointyCapacitor Manual? 0 Play Time 00:23:16 Cumulative 36.4 hours Start 2022.03.15 @ 01:41:53 End 2022.03.15 @ 02:08:46 Sessions 1 Manual Loads 0 Difficulty Rogue Special Mode None Game No. 26 Rogue 26 Adventurer 0 Explorer 0 Win Type - Total 0 Types 0/0/0/0/0/0/0/0/0 Lore% 30 Gallery% 37 Achievement% 26 Wizard Run 0 Options --------- ASCII 0 Keyboard 0 Movement Mouse Keybinds 1 Fullscreen 1 Font 18/TerminusBold Map View 76x50 Tactical HUD 1 Map Filters NONE Filters NONE Steam 1 RUN: fc4035d3-078f-4e57-8e34-ff1c583be868